bitfinex/quotes_BTCUSD_20220226
["timestamp","ask_amount","ask_price","bid_price","bid_amount"]
[1645886412156,8.21e-06,39266.0,39262.0,0.02440037]
[1645886412352,8.21e-06,39269.0,39263.0,0.68506391]
[1645886412560,0.28231705,39281.0,39272.0,0.15]
[1645886412753,0.1269525,39285.0,39274.0,0.063676]
[1645886412954,0.001,39285.0,39281.0,0.16953239]
[1645886413152,0.001,39285.0,39281.0,0.428274]
[1645886413357,0.001,39285.0,39281.0,0.051]
[1645886413952,0.001,39285.0,39276.0,0.002]
[1645886414756,1.04124976,39285.0,39276.0,0.002]
[1645886414954,1.04124976,39285.0,39270.0,6e-05]
[1645886415209,1.10495076,39285.0,39270.0,6e-05]
[1645886416015,0.26064976,39285.0,39273.0,0.20377838]
[1645886416209,0.7816,39285.0,39273.0,0.20377838]
[1645886416410,0.7816,39285.0,39270.0,6e-05]
[1645886416710,0.00034843,39279.0,39270.0,6e-05]
[1645886417712,0.7827,39282.0,39270.0,6e-05]
[1645886417912,0.0021,39282.0,39270.0,6e-05]
[1645886418112,0.00034844,39276.0,39270.0,6e-05]
[1645886418866,0.7806,39281.0,39270.0,6e-05]
[1645886419272,0.00034845,39275.0,39270.0,6e-05]
[1645886419667,0.00034845,39275.0,39270.0,0.00106]
[1645886420069,1.25273368,39282.0,39270.0,0.00106]
[1645886420469,0.00034845,39274.0,39270.0,0.00106]
[1645886420871,0.00034845,39274.0,39270.0,6e-05]
[1645886421278,1.35273368,39282.0,39270.0,6e-05]
[1645886421279,1.37828368,39282.0,39270.0,6e-05]
[1645886421469,1.13948368,39282.0,39270.0,6e-05]
[1645886421670,0.00234845,39274.0,39270.0,6e-05]
[1645886421873,0.051,39273.0,39270.0,6e-05]
[1645886422070,0.28843037,39273.0,39270.0,6e-05]
[1645886422273,0.02555,39271.0,39270.0,6e-05]
[1645886422471,1.09595,39271.0,39270.0,6e-05]
[1645886422706,1.19595,39271.0,39270.0,6e-05]
[1645886423109,1.44585,39271.0,39270.0,6e-05]
[1645886423306,1.45701528,39271.0,39270.0,6e-05]
[1645886423912,1.45201528,39271.0,39270.0,6e-05]
[1645886427063,1.65181528,39271.0,39270.0,6e-05]
[1645886427359,1.55201528,39271.0,39270.0,6e-05]
[1645886427762,1.45454686,39271.0,39270.0,6e-05]
[1645886427962,1.55454686,39271.0,39270.0,6e-05]
[1645886428160,1.5153,39271.0,39270.0,6e-05]
[1645886428360,1.55351678,39271.0,39270.0,6e-05]
[1645886428562,1.75331678,39271.0,39270.0,6e-05]
[1645886429560,1.65331678,39271.0,39270.0,6e-05]
[1645886430709,1.64331678,39271.0,39270.0,6e-05]
[1645886431708,1.84311678,39271.0,39270.0,6e-05]
[1645886431910,1.87612659,39271.0,39270.0,6e-05]
[1645886432511,1.67632659,39271.0,39270.0,6e-05]
[1645886432711,1.87612659,39271.0,39270.0,6e-05]
[1645886433853,1.74635558,39271.0,39270.0,6e-05]
[1645886434057,1.94525628,39271.0,39270.0,6e-05]
[1645886434254,1.74545628,39271.0,39270.0,6e-05]
[1645886434453,1.94525628,39271.0,39270.0,6e-05]
[1645886434854,1.74545628,39271.0,39270.0,6e-05]
[1645886435054,1.94525628,39271.0,39270.0,6e-05]
[1645886435354,1.87522729,39271.0,39270.0,6e-05]
[1645886435554,1.67542729,39271.0,39270.0,6e-05]
[1645886435755,1.87522729,39271.0,39270.0,6e-05]
[1645886436154,1.67542729,39271.0,39270.0,6e-05]
[1645886436559,1.94526591,39271.0,39270.0,6e-05]
[1645886437603,1.67542729,39271.0,39270.0,6e-05]
[1645886437903,1.87522729,39271.0,39270.0,6e-05]
[1645886438305,1.67542729,39271.0,39270.0,6e-05]
[1645886438502,1.87522729,39271.0,39270.0,6e-05]
[1645886439707,1.64880707,39271.0,39270.0,6e-05]
[1645886439913,1.718776,39271.0,39270.0,6e-05]
[1645886440108,1.84860707,39271.0,39270.0,6e-05]
[1645886440506,1.64880707,39271.0,39270.0,6e-05]
[1645886440909,1.84860707,39271.0,39270.0,6e-05]
[1645886441107,1.64880707,39271.0,39270.0,6e-05]
[1645886441360,1.84860707,39271.0,39270.0,6e-05]
[1645886441559,1.91858648,39271.0,39270.0,6e-05]
[1645886442164,1.71878648,39271.0,39270.0,6e-05]
[1645886442663,1.39890707,39271.0,39270.0,6e-05]
[1645886443262,1.19910707,39271.0,39270.0,6e-05]
[1645886443462,1.41853177,39271.0,39270.0,6e-05]
[1645886443662,1.61833177,39271.0,39270.0,6e-05]
[1645886444061,2.06803177,39271.0,39270.0,6e-05]
[1645886444863,1.86823177,39271.0,39270.0,6e-05]
[1645886445606,1.93831995,39271.0,39270.0,6e-05]
[1645886445806,1.86823177,39271.0,39270.0,6e-05]
[1645886446407,1.86184218,39271.0,39270.0,6e-05]
[1645886447006,1.85684218,39271.0,39270.0,6e-05]
[1645886447707,1.85784218,39271.0,39270.0,6e-05]
[1645886448961,1.85684218,39271.0,39270.0,6e-05]
[1645886449562,1.93331111,39271.0,39270.0,6e-05]
[1645886449763,2.13411111,39271.0,39270.0,6e-05]
[1645886450362,2.52386,39271.0,39270.0,6e-05]
[1645886450962,2.52286,39271.0,39270.0,6e-05]
[1645886451160,2.13311111,39271.0,39270.0,6e-05]
[1645886451762,2.13411111,39271.0,39270.0,6e-05]
[1645886453005,2.13311111,39271.0,39270.0,6e-05]
[1645886455207,2.15973133,39271.0,39270.0,6e-05]
[1645886455607,2.16073133,39271.0,39270.0,6e-05]
[1645886457059,2.15973133,39271.0,39270.0,6e-05]
[1645886457761,2.16073133,39271.0,39270.0,6e-05]
[1645886459063,2.15973133,39271.0,39270.0,6e-05]
[1645886460712,2.15334174,39271.0,39270.0,6e-05]
[1645886461312,2.25334174,39271.0,39270.0,6e-05]
[1645886461710,2.15534174,39271.0,39270.0,6e-05]
[1645886462111,2.25534174,39271.0,39270.0,6e-05]
[1645886462912,2.15334174,39271.0,39270.0,6e-05]
[1645886463112,2.25334174,39271.0,39270.0,6e-05]
[1645886463513,2.15334174,39271.0,39270.0,6e-05]
[1645886464472,2.25334174,39271.0,39270.0,6e-05]
[1645886466169,2.15334174,39271.0,39270.0,6e-05]
[1645886467719,2.15434174,39271.0,39270.0,6e-05]
[1645886467916,2.55284749,39271.0,39270.0,6e-05]
[1645886468919,2.55184749,39271.0,39270.0,6e-05]
[1645886469715,2.12772152,39271.0,39270.0,6e-05]
[1645886470714,2.12772152,39271.0,39257.0,0.01017]
[1645886470715,8.96e-06,39270.0,39257.0,0.31017]
[1645886470917,0.7806,39266.0,39257.0,0.01017]
[1645886471115,0.7806,39264.0,39257.0,0.01017]
[1645886471372,0.7806,39262.0,39257.0,0.01017]
[1645886471569,0.8316,39262.0,39257.0,0.01017]
[1645886471768,1.01015969,39261.0,39257.0,0.01017]
[1645886472168,1.01015969,39261.0,39257.0,0.00902121]
[1645886472770,1.06115969,39261.0,39257.0,0.00902121]
[1645886475523,0.8316,39261.0,39257.0,0.00902121]
[1645886477519,0.8266,39261.0,39257.0,0.00902121]
[1645886478963,0.051,39261.0,39257.0,0.00902121]
[1645886479364,0.001611,39266.0,39257.0,0.00902121]
[1645886479564,0.00033249,39268.0,39257.0,0.00902121]
[1645886479765,0.2408,39266.0,39257.0,0.00902121]
[1645886480163,1.0214,39266.0,39257.0,0.00902121]
[1645886480963,1.0194,39266.0,39257.0,0.00902121]
[1645886481166,1.0694,39266.0,39258.0,0.23644836]
[1645886481365,1.1194,39266.0,39257.0,0.00902121]
[1645886483810,1.1224,39266.0,39257.0,0.00902121]
[1645886484207,0.844333,39265.0,39257.0,0.00902121]
[1645886484409,1.144333,39265.0,39259.0,0.00141154]
[1645886485917,0.7806,39263.0,39259.0,0.00141154]
[1645886486115,0.7806,39261.0,39259.0,0.00141154]
[1645886486360,0.7806,39260.0,39259.0,0.00141154]
[1645886486960,0.1,39261.0,39259.0,0.00141154]
[1645886487162,0.8806,39261.0,39259.0,0.00141154]
[1645886487362,0.8306,39260.0,39259.0,0.00141154]
[1645886487562,0.11269651,39262.0,39259.0,0.00141154]
[1645886487765,0.002,39261.0,39259.0,0.00141154]
[1645886488166,0.8316,39260.0,39259.0,0.00141154]
[1645886488470,0.9316,39260.0,39259.0,0.00141154]
[1645886488867,0.94399979,39260.0,39259.0,0.00141154]
[1645886489466,0.94399979,39260.0,39252.0,0.00636903]
[1645886490217,0.7806,39256.0,39252.0,0.00636903]
[1645886490422,1.1316,39255.0,39252.0,0.00636903]
[1645886490716,0.8066,39254.0,39252.0,0.00636903]
[1645886491415,1.0305,39253.0,39252.0,0.00636903]
[1645886491715,1.0815,39253.0,39252.0,0.00636903]
[1645886492318,0.7806,39252.0,39240.0,0.1708]
[1645886492516,0.7806,39249.0,39245.0,0.00133315]
[1645886492716,0.8816,39248.0,39245.0,0.00133315]
[1645886493515,0.86885915,39248.0,39238.0,0.56507526]
[1645886493716,0.2388,39247.0,39245.0,0.00018518]
[1645886493976,0.051,39246.0,39245.0,0.00018518]
[1645886494770,0.051,39246.0,39235.0,0.02555]
[1645886494971,0.051,39246.0,39244.0,0.00032182]
[1645886495171,0.101,39246.0,39244.0,0.00032182]
[1645886495471,0.102,39246.0,39244.0,0.00032182]
[1645886495973,0.165764,39246.0,39234.0,0.21823518]
[1645886496173,0.3,39245.0,39243.0,0.00032182]
[1645886496371,0.051,39244.0,39243.0,0.00032182]
[1645886497274,0.051,39244.0,39234.0,0.21823518]
[1645886497473,0.053,39244.0,39234.0,0.21823518]
[1645886498615,0.053,39244.0,39238.0,0.00017424]
[1645886498815,1.06441596,39246.0,39239.0,0.45]
[1645886499016,0.22105196,39245.0,39239.0,0.45]
[1645886499416,0.8316,39245.0,39239.0,0.45]
[1645886499817,0.3,39244.0,39236.0,0.0013978]
[1645886500020,0.3,39244.0,39234.0,0.0012875]
[1645886500021,0.84437,39242.0,39234.0,0.0012875]
[1645886500218,0.7806,39240.0,39234.0,0.0012875]
[1645886500418,0.401,39241.0,39234.0,0.0012875]
[1645886500419,0.8316,39239.0,39234.0,0.0012875]
[1645886500617,0.051,39238.0,39234.0,0.0012875]
[1645886500817,0.051,39238.0,39230.0,0.3744]
[1645886501018,0.101,39238.0,39230.0,0.3744]
[1645886501465,0.7806,39237.0,39230.0,0.3744]
[1645886501667,0.7806,39235.0,39230.0,0.3744]
[1645886501970,0.051,39234.0,39230.0,0.3744]
[1645886502165,0.051,39234.0,39232.0,0.00017422]
[1645886502867,0.22105196,39234.0,39232.0,0.00017422]
[1645886503064,0.051,39234.0,39232.0,0.00017422]
[1645886503266,0.051,39234.0,39231.0,0.00157202]
[1645886503466,0.002,39239.0,39234.0,0.10199999]
[1645886504364,0.002,39239.0,39234.0,0.28769773]
[1645886504573,0.002,39239.0,39235.0,0.0003218]
[1645886504767,0.22105196,39245.0,39235.0,0.3003218]
[1645886504967,0.22105196,39245.0,39237.0,0.0013978]
[1645886505216,0.051,39245.0,39237.0,0.0013978]
[1645886505412,0.016,39245.0,39235.0,0.0003218]
[1645886505611,0.7966,39245.0,39234.0,0.08609999]
[1645886505813,0.7966,39245.0,39238.0,0.0003323]
[1645886506011,0.8466,39245.0,39238.0,0.0003323]
[1645886506211,0.85697405,39245.0,39238.0,0.0003323]
[1645886506411,0.8466,39245.0,39234.0,0.08598509]
[1645886506611,0.85809398,39245.0,39234.0,0.08598509]
[1645886506812,0.063768,39243.0,39234.0,0.08598509]
[1645886507414,0.844368,39243.0,39234.0,0.08598509]
[1645886507713,0.7806,39242.0,39234.0,0.08698509]
[1645886507912,0.214768,39243.0,39234.0,0.08698509]
[1645886507913,0.7806,39240.0,39234.0,0.08698509]
[1645886508111,0.05,39240.0,39234.0,0.08698509]
[1645886508312,0.8306,39239.0,39234.0,0.08698509]
[1645886508513,0.1,39239.0,39234.0,0.08698509]
[1645886508729,0.01018591,39239.0,39234.0,0.08698509]
[1645886508964,0.01018591,39239.0,39234.0,0.08598509]
[1645886509366,0.101,39241.0,39235.0,0.00034407]
[1645886509563,0.05,39239.0,39235.0,0.00034407]
[1645886509769,0.101,39241.0,39235.0,0.00034407]
[1645886510366,0.101,39241.0,39234.0,0.08132916]
[1645886510567,0.101,39241.0,39236.0,0.00034406]
[1645886511467,0.8836,39241.0,39234.0,0.08111514]
[1645886511668,0.89320141,39241.0,39234.0,0.08111514]
[1645886512068,1.06325337,39241.0,39234.0,0.08111514]
[1645886512273,1.36325337,39241.0,39234.0,0.08111514]
[1645886512714,0.7806,39238.0,39234.0,0.08111514]
[1645886512916,1.0806,39238.0,39234.0,0.08111514]
[1645886513112,1.31442796,39238.0,39234.0,0.08111514]
[1645886513615,0.8806,39236.0,39234.0,0.08111514]
[1645886515014,0.9316,39236.0,39234.0,0.08111514]
[1645886515215,1.2316,39236.0,39234.0,0.08111514]
[1645886515416,0.9407101,39236.0,39234.0,0.08111514]
[1645886515715,0.95065196,39235.0,39234.0,0.08111514]
[1645886516015,0.051,39235.0,39234.0,0.08111514]
[1645886516216,0.17005196,39235.0,39234.0,0.08111514]
[1645886516464,0.1,39236.0,39234.0,0.08111514]
[1645886516664,0.05,39239.0,39234.0,0.08111514]
[1645886516868,0.22005196,39239.0,39234.0,0.08111514]
[1645886517063,0.1,39239.0,39234.0,0.08111514]
[1645886517263,0.05,39239.0,39234.0,0.08111514]
[1645886517664,0.051,39239.0,39234.0,0.08111514]
[1645886517872,0.16468128,39239.0,39234.0,0.08251294]
[1645886518065,0.7806,39244.0,39234.0,0.08251294]
[1645886518066,0.16468128,39243.0,39234.0,0.08251294]
[1645886518264,0.16468128,39243.0,39237.0,0.0013978]
[1645886518464,0.2388,39245.0,39237.0,0.0013978]
[1645886518865,0.2388,39245.0,39237.0,0.18416522]
[1645886519566,0.2398,39245.0,39237.0,0.18276742]
[1645886519964,0.2898,39245.0,39237.0,0.18276742]
[1645886520226,0.3398,39245.0,39237.0,0.18276742]
[1645886520816,0.3388,39245.0,39237.0,0.18276742]
[1645886523960,0.3388,39245.0,39237.0,0.18416522]
[1645886524364,0.2888,39245.0,39237.0,0.18416522]
[1645886524760,0.2888,39245.0,39237.0,0.18276742]
[1645886525160,0.2888,39245.0,39235.0,0.02555]
[1645886525161,0.2888,39245.0,39235.0,0.01018]
[1645886525366,0.7806,39243.0,39235.0,0.0097324]
[1645886525562,0.3,39242.0,39234.0,0.08111514]
[1645886525763,0.4,39242.0,39234.0,0.08111514]
[1645886526762,0.41138326,39242.0,39234.0,0.08111514]
[1645886526962,0.47515326,39242.0,39234.0,0.08111514]
[1645886527616,0.46377,39242.0,39234.0,0.08111514]
[1645886527816,0.16377,39242.0,39234.0,0.08111514]
[1645886529316,0.17352821,39242.0,39234.0,0.08111514]
[1645886529515,0.95412821,39242.0,39234.0,0.08111514]
[1645886529715,0.7806,39241.0,39234.0,0.08111514]
[1645886530415,0.35336251,39242.0,39234.0,0.08111514]
[1645886530619,1.13396251,39242.0,39234.0,0.08111514]
[1645886531017,0.1,39242.0,39234.0,0.08111514]
[1645886531215,0.01109132,39242.0,39234.0,0.08111514]
[1645886531463,0.05,39241.0,39234.0,0.08111514]
[1645886531661,0.01109132,39242.0,39234.0,0.08111514]
[1645886532264,0.01109132,39242.0,39234.0,0.0799672]
[1645886533062,1.13135607,39244.0,39234.0,0.0799672]
[1645886533273,1.27588929,39244.0,39234.0,0.0799672]
[1645886533461,0.49528929,39244.0,39234.0,0.0799672]
[1645886533664,0.14453322,39243.0,39234.0,0.0799672]
[1645886533863,0.35075607,39244.0,39234.0,0.0799672]
[1645886534262,0.49528929,39244.0,39234.0,0.0799672]
[1645886534562,0.3388,39244.0,39234.0,0.0799672]
[1645886534962,0.7806,39243.0,39234.0,0.0799672]
[1645886535216,0.14453322,39243.0,39234.0,0.0799672]
[1645886535417,0.48333322,39244.0,39235.0,0.3]
[1645886535618,0.001,39243.0,39234.0,0.0799672]
[1645886535823,0.001,39243.0,39235.0,0.3]
[1645886536018,0.001,39243.0,39234.0,0.0799672]
[1645886536919,0.48333322,39244.0,39234.0,0.0799672]
[1645886537118,0.48320762,39244.0,39234.0,0.0799672]
[1645886537519,0.48420762,39244.0,39234.0,0.0799672]
[1645886538323,0.58280982,39244.0,39234.0,0.0799672]
[1645886538520,0.48420762,39244.0,39234.0,0.0799672]
[1645886538965,1.26380762,39244.0,39234.0,0.0799672]
[1645886539159,1.32757462,39244.0,39234.0,0.0799672]
[1645886539360,0.92513322,39243.0,39236.0,0.0012892]
[1645886539563,0.14453322,39243.0,39236.0,0.0012892]
[1645886539959,1.1202744,39244.0,39236.0,0.0012892]
[1645886540359,0.92513322,39243.0,39236.0,0.0012892]
[1645886541661,0.14453322,39243.0,39236.0,0.0012892]
[1645886542060,0.3386744,39244.0,39236.0,0.0012892]
[1645886542912,0.48320762,39244.0,39236.0,0.0012892]
[1645886543108,0.3386744,39244.0,39236.0,0.0012892]
[1645886543308,0.4279914,39244.0,39236.0,0.0012892]
[1645886543513,0.7806,39243.0,39236.0,0.0012892]
[1645886543910,0.92513322,39243.0,39236.0,0.0012892]
[1645886544409,0.92513322,39243.0,39234.0,0.08125373]
[1645886545610,0.14453322,39243.0,39234.0,0.08125373]
[1645886546213,0.001,39243.0,39234.0,0.08125373]
[1645886547465,0.92513322,39243.0,39234.0,0.08125373]
[1645886547666,0.001,39243.0,39234.0,0.08125373]
[1645886547867,0.92613322,39243.0,39234.0,0.08125373]
[1645886548266,0.95168322,39243.0,39234.0,0.08125373]
[1645886548967,0.95168322,39243.0,39236.0,0.00112805]
[1645886549167,0.95068322,39243.0,39236.0,0.00112805]
[1645886549367,0.92513322,39243.0,39236.0,0.00112805]
[1645886550514,1.02373542,39243.0,39236.0,0.00112805]
[1645886550716,0.92513322,39243.0,39236.0,0.00112805]
[1645886550917,0.14453322,39243.0,39234.0,0.07609525]
[1645886551716,0.14553322,39243.0,39234.0,0.07609525]
[1645886552016,0.92613322,39243.0,39234.0,0.07609525]
[1645886552415,0.7806,39242.0,39234.0,0.07609525]
[1645886552618,0.24413542,39243.0,39234.0,0.07609525]
[1645886552819,0.15767531,39242.0,39234.0,0.07609525]
[1645886553016,0.063773,39241.0,39234.0,0.07609525]
[1645886553215,0.1486022,39239.0,39234.0,0.07609525]
[1645886553417,0.9292022,39239.0,39234.0,0.07609525]
[1645886553870,0.9792022,39239.0,39234.0,0.07609525]
[1645886554269,0.0986022,39235.0,39234.0,0.06609525]
[1645886554668,0.3133832,39235.0,39234.0,0.06609525]
[1645886554970,1.10466486,39235.0,39234.0,0.06609525]
[1645886555370,1.24919808,39235.0,39234.0,0.06609525]
[1645886555568,1.10466486,39235.0,39234.0,0.06609525]
[1645886555769,1.24919808,39235.0,39234.0,0.06609525]
[1645886556172,1.49909808,39235.0,39234.0,0.06609525]
[1645886558819,1.50109808,39235.0,39234.0,0.06609525]
[1645886559430,1.50109808,39235.0,39233.0,0.0003026]
[1645886559431,1.86222767,39235.0,39233.0,0.0003026]
[1645886559632,1.86222767,39235.0,39218.0,0.01018]
[1645886559633,1.108214,39234.0,39218.0,0.01018]
[1645886559827,0.02555,39231.0,39215.0,8.26467865]
[1645886560024,0.0986022,39222.0,39215.0,8.26467865]
[1645886560226,0.9940122,39222.0,39215.0,8.26467865]
[1645886560423,1.2799383,39222.0,39215.0,8.26467865]
[1645886560623,1.0440122,39222.0,39215.0,8.26467865]
[1645886560821,1.20046426,39222.0,39215.0,8.26467865]
[1645886561394,1.22601426,39222.0,39215.0,8.26467865]
[1645886561601,1.22101426,39222.0,39215.0,8.26467865]
[1645886561794,1.19546426,39222.0,39216.0,0.23818809]
[1645886562194,1.19546426,39222.0,39220.0,0.00032285]
[1645886562396,1.13165426,39222.0,39220.0,0.00032285]
[1645886562895,1.15720426,39222.0,39220.0,0.00032285]
[1645886563094,1.13165426,39222.0,39220.0,0.00032285]
[1645886563296,0.35105426,39222.0,39216.0,0.23818809]
[1645886563495,0.35105426,39222.0,39220.0,0.00032285]
[1645886563695,0.98712104,39222.0,39220.0,0.00032285]
[1645886563894,0.20652104,39222.0,39220.0,0.00032285]
[1645886564099,0.34970336,39222.0,39220.0,0.00032285]
[1645886564297,0.98577014,39222.0,39220.0,0.00032285]
[1645886564498,0.98577014,39222.0,39216.0,0.23818809]
[1645886564696,0.34970336,39222.0,39220.0,0.00032121]
[1645886564898,0.20517014,39222.0,39220.0,0.00032121]
[1645886565313,0.98577014,39222.0,39220.0,0.00032121]
[1645886565512,0.20517014,39222.0,39220.0,0.00032121]
[1645886565715,0.34970336,39222.0,39215.0,8.26467865]
[1645886565914,0.53072014,39222.0,39220.0,0.00032121]
[1645886566314,1.01132014,39222.0,39220.0,0.00032121]
[1645886566717,1.15585336,39222.0,39220.0,0.00032121]
[1645886566913,1.15585336,39222.0,39215.0,8.26467865]
[1645886566914,1.15785336,39222.0,39215.0,8.26467865]
[1645886567114,1.15785336,39222.0,39220.0,0.00019455]
[1645886568115,1.15585336,39222.0,39215.0,8.26467865]
[1645886568316,1.15585336,39222.0,39220.0,0.00034222]
[1645886568716,1.39465336,39222.0,39220.0,0.00034222]
[1645886568966,1.39665336,39222.0,39220.0,0.00034222]
[1645886569162,1.39665336,39222.0,39215.0,8.26467865]
[1645886569666,1.39665336,39222.0,39220.0,0.00034222]
[1645886569667,1.46046036,39222.0,39220.0,0.00034222]
[1645886570067,1.46046036,39222.0,39215.0,8.26373034]
[1645886570265,0.7806,39217.0,39215.0,8.26373034]
[1645886570465,0.1496022,39216.0,39215.0,8.26373034]
[1645886570665,0.9302022,39216.0,39215.0,8.26373034]
[1645886570867,0.051,39216.0,39215.0,8.26373034]
[1645886571871,0.19553322,39216.0,39215.0,8.26373034]
[1645886572069,0.051,39216.0,39215.0,8.26373034]
[1645886572732,0.1496022,39216.0,39215.0,8.26373034]
[1645886572932,0.9322022,39216.0,39215.0,8.26373034]
[1645886573334,1.07673542,39216.0,39215.0,8.26373034]
[1645886573734,1.07666937,39216.0,39215.0,8.26373034]
[1645886574134,1.07466937,39216.0,39215.0,8.26373034]
[1645886575035,1.07666937,39216.0,39215.0,8.26373034]
[1645886576136,1.07466937,39216.0,39215.0,8.26373034]
[1645886576367,0.97606717,39216.0,39215.0,8.26373034]
[1645886576869,0.83153395,39216.0,39215.0,8.26373034]
[1645886579071,0.83353395,39216.0,39215.0,8.26373034]
[1645886579472,0.7826,39216.0,39215.0,8.26373034]
[1645886580222,0.7806,39216.0,39215.0,8.26373034]
[1645886580418,0.92141264,39216.0,39215.0,8.26373034]
[1645886580618,0.7806,39216.0,39215.0,8.26373034]
[1645886581023,0.7826,39216.0,39215.0,8.26373034]
[1645886581222,0.14056436,39220.0,39215.0,8.26373034]
[1645886581621,0.015,39221.0,39215.0,8.26373034]
[1645886582022,0.015,39221.0,39216.0,0.01018]
[1645886582224,0.015,39221.0,39217.0,0.18125644]
[1645886582620,0.015,39221.0,39217.0,0.18159843]
[1645886582821,0.015,39221.0,39217.0,0.00034199]
[1645886583622,0.015,39221.0,39215.0,8.26373034]
[1645886583868,0.015,39221.0,39217.0,0.00034199]
[1645886584871,0.015,39221.0,39215.0,8.26373034]
[1645886585068,0.017,39221.0,39217.0,0.00034199]
[1645886585269,0.015956,39221.0,39217.0,0.00034199]
[1645886586072,0.015956,39221.0,39215.0,8.26373034]
[1645886586271,0.013956,39221.0,39217.0,0.00034199]
[1645886586672,1.12967209,39225.0,39217.0,0.00034199]
[1645886586972,0.7806,39224.0,39217.0,0.00034199]
[1645886587172,0.92116436,39224.0,39217.0,0.00034199]
[1645886587375,0.7806,39224.0,39215.0,8.26373034]
[1645886587620,0.92116436,39224.0,39218.0,0.00034198]
[1645886587921,0.7806,39224.0,39218.0,0.00034198]
[1645886588522,0.7806,39224.0,39215.0,8.26373034]
[1645886588721,0.7806,39224.0,39218.0,0.00034199]
[1645886588923,0.7826,39224.0,39218.0,0.00034199]
[1645886589523,0.7776,39224.0,39218.0,0.00034199]
[1645886589723,0.7776,39224.0,39215.0,8.26373034]
[1645886589929,0.7776,39224.0,39218.0,0.00034199]
[1645886590324,0.7756,39224.0,39218.0,0.00034199]
[1645886590927,0.7756,39224.0,39215.0,8.26373034]
[1645886591126,0.14056436,39225.0,39218.0,0.00034199]
[1645886591388,0.01602,39228.0,39218.0,0.00034199]
[1645886591389,0.013956,39228.0,39218.0,0.00034199]
[1645886591776,0.013956,39228.0,39225.0,0.20525138]
[1645886592176,0.013956,39228.0,39225.0,0.20452502]
[1645886592978,0.013956,39228.0,39225.0,0.23007502]
[1645886593179,0.013956,39228.0,39226.0,0.3]
[1645886593380,0.013956,39228.0,39225.0,0.20452502]
[1645886593579,0.013956,39228.0,39226.0,0.3]
[1645886593779,0.013956,39228.0,39225.0,0.20452502]
[1645886593985,0.013956,39228.0,39226.0,0.3]
[1645886593986,6e-06,39228.0,39226.0,0.3]
[1645886594580,6e-06,39228.0,39225.0,0.02555]
[1645886594980,0.001006,39228.0,39225.0,0.02555]
[1645886595420,0.001006,39228.0,39226.0,0.2353907]
[1645886595617,0.001006,39228.0,39227.0,0.3]
[1645886596918,6e-06,39228.0,39227.0,0.3]
[1645886597119,6e-06,39228.0,39224.0,0.3]
[1645886597120,0.001006,39228.0,39224.0,0.3]
[1645886597621,0.001006,39228.0,39223.0,0.1154]
[1645886597821,0.001006,39228.0,39222.0,0.001]
[1645886598023,0.0986022,39224.0,39222.0,0.001]
[1645886598219,0.05,39224.0,39218.0,0.00032418]
[1645886598718,0.002064,39227.0,39218.0,0.00032418]
[1645886598979,0.001,39224.0,39218.0,0.00032418]
[1645886599181,0.001,39224.0,39223.0,0.18805317]
[1645886600881,6e-06,39228.0,39223.0,0.18805317]
[1645886601081,0.002,39224.0,39217.0,0.119]
[1645886602183,6e-06,39228.0,39219.0,0.18705897]
[1645886603223,6e-06,39228.0,39218.0,0.00034225]
[1645886604225,6e-06,39228.0,39218.0,0.18021796]
[1645886604424,6e-06,39228.0,39218.0,0.18055892]
[1645886605423,6e-06,39228.0,39218.0,0.18021796]
[1645886605627,6e-06,39228.0,39218.0,0.18055892]
[1645886606571,6e-06,39228.0,39218.0,0.18021796]
[1645886606772,6e-06,39228.0,39218.0,0.20610892]
[1645886607775,6e-06,39228.0,39218.0,0.20576796]
[1645886607974,6e-06,39228.0,39218.0,0.2061102]
[1645886608976,6e-06,39228.0,39218.0,0.20576796]
[1645886609177,6e-06,39228.0,39218.0,0.2061102]
[1645886610131,6e-06,39228.0,39218.0,0.20576796]
[1645886610331,6e-06,39228.0,39218.0,0.2061102]
[1645886610736,6e-06,39228.0,39224.0,0.20681713]
[1645886611232,6e-06,39228.0,39224.0,0.23236713]
[1645886611439,6e-06,39228.0,39224.0,0.02555]
[1645886612132,6e-06,39228.0,39221.0,0.02555]
[1645886612332,6e-06,39228.0,39219.0,0.3523]
[1645886612333,6e-06,39228.0,39223.0,0.02555]
[1645886615571,6e-06,39228.0,39222.0,0.02555]
[1645886616172,6e-06,39228.0,39219.0,0.3523]
[1645886616378,0.051,39227.0,39219.0,0.3523]
[1645886616573,0.051,39227.0,39218.0,0.00134225]
[1645886616773,0.7806,39223.0,39218.0,0.00134225]
[1645886616972,0.9302022,39223.0,39218.0,0.00123975]
[1645886617171,0.05,39222.0,39218.0,0.00034225]
[1645886617373,0.05,39222.0,39215.0,8.26373034]
[1645886617630,0.0986022,39222.0,39218.0,0.00034223]
[1645886618033,0.24016656,39222.0,39218.0,0.00034223]
[1645886618735,0.14156436,39222.0,39218.0,0.00034223]
[1645886619230,0.2496022,39223.0,39218.0,0.00034223]
[1645886619831,0.2496022,39223.0,39215.0,8.26373034]
[1645886620032,0.2516022,39223.0,39215.0,8.26373034]
[1645886621238,0.2496022,39223.0,39215.0,8.26373034]
[1645886621474,0.0986022,39221.0,39215.0,8.26373034]
[1645886621871,0.1486022,39221.0,39215.0,8.26373034]
[1645886622072,0.0986022,39219.0,39215.0,8.26373034]
[1645886622273,0.1986022,39219.0,39216.0,0.00034219]
[1645886622671,0.1,39219.0,39216.0,0.00034219]
[1645886622871,0.1486022,39219.0,39216.0,0.00034219]
[1645886623072,0.1986022,39219.0,39216.0,0.00034219]
[1645886623272,0.1,39219.0,39215.0,8.26373034]
[1645886623471,0.05,39219.0,39216.0,0.00034219]
[1645886623671,0.151,39220.0,39216.0,0.00034219]
[1645886623876,0.05,39218.0,39216.0,0.00034219]
[1645886624072,0.04932089,39218.0,39216.0,0.00034219]
[1645886624272,0.002,39219.0,39216.0,0.00034219]
[1645886624473,0.002,39219.0,39215.0,8.26373034]
[1645886624972,0.002,39219.0,39215.0,8.26407254]
[1645886625217,0.101,39220.0,39215.0,8.26407254]
[1645886625418,0.151,39220.0,39215.0,8.26407254]
[1645886625921,0.153,39220.0,39216.0,0.00034219]
[1645886626720,0.2516022,39220.0,39216.0,0.00034219]
[1645886626921,0.153,39220.0,39215.0,8.26373034]
[1645886627119,0.153,39220.0,39216.0,0.00034219]